[Event "ONJK-B 2019"]
[Site "Borne"]
[Date "2019.08.08"]
[Round "6.8"]
[White "Hooijmans, Max"]
[Black "Nopper, Louis"]
[Result "0-1"]
[ECO "B07"]
[WhiteElo "1559"]
[BlackElo "1579"]
[Annotator "NA"]
[PlyCount "64"]
[EventDate "2019.08.05"]
[EventType "swiss"]
[EventCountry "NED"]
[SourceTitle "playchess.com"]
[Source "ChessBase"]
[SourceQuality "1"]
[TimeControl "5400+30"]

1. e4 {[%emt 0:00:00]} d6 {[%emt 0:00:00]} 2. Nf3 {[%emt 0:00:00]} Nf6 {[%emt 0:00:44]} 3. c3 {[%emt 0:00:00]} c6 {[%emt 0:02:14]} 4. d3 {[%emt 0:01:59]} g6 {[%emt 0:04:12]} 5. g3 {[%emt 0:01:30]} Bg7 {[%emt 0:00:11]} 6. Bg2 {[%emt 0:00:06]} O-O {[%emt 0:00:16]} 7. O-O {[%emt 0:00:13]} Qc7 {[%emt 0:03:16]} 8. Be3 {[%emt 0:02:21]} e5 {[%emt 0:03:48]} 9. Nfd2 {[%emt 0:05:49]} Ng4 {[%emt 0:05:04]} 10. h3 {[%emt 0:01:58]} Nxe3 {[%emt 0:00:23]} 11. fxe3 {[%emt 0:00:02]} Be6 {[%emt 0:03:36]} 12. c4 {[%emt 0:05:57]} Qb6 {[%emt 0:08:16]} 13. Rf3 {[%emt 0:05:43]} Bh6 {[%emt 0:14:49]} 14. Kf2 {[%emt 0:05:10]} f5 {[%emt 0:17:20]} 15. Qb3 {[%emt 0:03:02]} Nd7 {[%emt 0:03:19]} 16. Qxb6 {[%emt 0:00:46]} axb6 {[%emt 0:00:10]} 17. exf5 {[%emt 0:00:53]} gxf5 {[%emt 0:00:13]} 18. Nc3 {[%emt 0:01:13]} d5 {[%emt 0:01:47]} 19. cxd5 {[%emt 0:01:02]} cxd5 {[%emt 0:00:07]} 20. Ke2 {[%emt 0:00:31]} d4 {[%emt 0:05:03]} 21. exd4 {[%emt 0:00:55]} exd4 {[%emt 0:01:32]} 22. Nb5 {[%emt 0:00:36]} Bd5 {[%emt 0:03:02]} 23. Rf2 {[%emt 0:00:09]} Rae8+ {[%emt 0:02:35]} 24. Kd1 {[%emt 0:00:36]} Bxg2 {[%emt 0:01:41]} 25. Rxg2 {[%emt 0:00:04]} Nc5 {[%emt 0:00:45]} 26. Kc2 {[%emt 0:02:49]} Re3 {[%emt 0:00:36]} 27. Nc4 {[%emt 0:00:48]} Rf3 {[%emt 0:07:45]} 28. b4 {[%emt 0:01:32]} Nxd3 {[%emt 0:00:18]} 29. Nxd4 {[%emt 0:00:18]} Nxb4+ {[%emt 0:00:14]} 30. Kb2 {[%emt 0:00:45]} Rd3 {[%emt 0:00:28]} 31. Ne6 {[%emt 0:01:13]} Rc8 {[%emt 0:03:12]} 32. Nf4 {[%emt 0:05:32]} Bg7+ {[%emt 0:00:57]} 0-1

[Event "ONJK-B 2019"]
[Site "Borne"]
[Date "2019.08.08"]
[Round "6.9"]
[White "Tiggelman, Laura"]
[Black "Heskes, Johan"]
[Result "0-1"]
[ECO "C40"]
[WhiteElo "1436"]
[BlackElo "1535"]
[Annotator "NA"]
[PlyCount "98"]
[EventDate "2019.08.05"]
[EventType "swiss"]
[EventCountry "NED"]
[SourceTitle "playchess.com"]
[Source "ChessBase"]
[SourceQuality "1"]
[TimeControl "5400+30"]

1. e4 {[%emt 0:00:00]} e5 {[%emt 0:00:00]} 2. Nf3 {[%emt 0:00:00]} f5 {[%emt 0:00:00]} 3. exf5 {[%emt 0:00:00]} e4 {[%emt 0:00:00]} 4. Ne5 {[%emt 0:00:14]} Nf6 {[%emt 0:00:07]} 5. Be2 {[%emt 0:01:14]} d6 {[%emt 0:00:29]} 6. Bh5+ {[%emt 0:25:14]} Ke7 {[%emt 0:00:51]} 7. Nc4 {[%emt 0:05:18]} Bxf5 {[%emt 0:02:36]} 8. Ne3 {[%emt 0:08:43]} Be6 {[%emt 0:01:40]} 9. d3 {[%emt 0:04:58]} exd3 {[%emt 0:01:49]} 10. cxd3 {[%emt 0:01:03]} g6 {[%emt 0:01:17]} 11. Bf3 {[%emt 0:02:19]} c6 {[%emt 0:03:44]} 12. Ng4 {[%emt 0:05:18]} Kf7 {[%emt 0:01:45]} 13. O-O {[%emt 0:03:28]} Nbd7 {[%emt 0:02:29]} 14. Re1 {[%emt 0:00:49]} Bg7 {[%emt 0:01:21]} 15. Nh6+ {[%emt 0:03:22]} Bxh6 {[%emt 0:00:30]} 16. Bxh6 {[%emt 0:00:06]} Re8 {[%emt 0:00:07]} 17. Nc3 {[%emt 0:01:59]} Ne5 {[%emt 0:02:06]} 18. d4 {[%emt 0:02:27]} Nxf3+ {[%emt 0:04:46]} 19. Qxf3 {[%emt 0:00:07]} d5 {[%emt 0:00:08]} 20. h3 {[%emt 0:01:32]} Kg8 {[%emt 0:02:01]} 21. Re2 {[%emt 0:03:27]} Bf7 {[%emt 0:02:39]} 22. Rae1 {[%emt 0:00:55]} Qd6 {[%emt 0:02:00]} 23. Bf4 {[%emt 0:05:59]} Qf8 {[%emt 0:02:10]} 24. Bg5 {[%emt 0:02:01]} Nd7 {[%emt 0:02:38]} 25. Qg4 {[%emt 0:00:52]} Rxe2 {[%emt 0:03:44]} 26. Rxe2 {[%emt 0:00:09]} Be8 {[%emt 0:00:13]} 27. h4 {[%emt 0:04:15]} h6 {[%emt 0:01:24]} 28. Bf4 {[%emt 0:05:42]} h5 {[%emt 0:01:14]} 29. Qg5 {[%emt 0:01:35]} Qf6 {[%emt 0:01:15]} 30. Qxf6 {[%emt 0:03:18]} Nxf6 {[%emt 0:00:36]} 31. Re7 {[%emt 0:00:18]} Nd7 {[%emt 0:00:59]} 32. Nb1 {[%emt 0:01:28]} b6 {[%emt 0:00:54]} 33. Nd2 {[%emt 0:00:48]} c5 {[%emt 0:00:19]} 34. Nf3 {[%emt 0:00:47]} cxd4 {[%emt 0:00:58]} 35. Nxd4 {[%emt 0:00:06]} Nc5 {[%emt 0:00:35]} 36. b4 {[%emt 0:05:35]} Nd3 {[%emt 0:01:32]} 37. Bd2 {[%emt 0:01:14]} a5 {[%emt 0:00:57]} 38. Ne6 {[%emt 0:00:53]} Bf7 {[%emt 0:00:19]} 39. Ng5 {[%emt 0:00:11]} axb4 {[%emt 0:07:24]} 40. Nxf7 {[%emt 0:01:13]} Rxa2 {[%emt 0:00:11]} 41. Nh6+ {[%emt 0:00:22]} Kf8 {[%emt 0:00:18]} 42. Rb7 {[%emt 0:00:46]} Rxd2 {[%emt 0:00:23]} 43. Rxb6 {[%emt 0:00:15]} Kg7 {[%emt 0:00:14]} 44. Ng8 {[%emt 0:00:57]} Kxg8 {[%emt 0:00:09]} 45. Rxg6+ {[%emt 0:00:04]} Kf7 {[%emt 0:00:15]} 46. Rb6 {[%emt 0:00:12]} Rxf2 {[%emt 0:00:32]} 47. Rxb4 {[%emt 0:01:20]} Nxb4 {[%emt 0:00:06]} 48. Kxf2 {[%emt 0:00:05]} d4 {[%emt 0:00:07]} 49. g3 {[%emt 0:00:20]} Kf6 {[%emt 0:00:10]} 0-1

[Event "ONJK-B 2019"]
[Site "Borne"]
[Date "2019.08.08"]
[Round "6.10"]
[White "Michielsen, Lies"]
[Black "Olree, Alex"]
[Result "0-1"]
[ECO "B07"]
[WhiteElo "1489"]
[BlackElo "1411"]
[Annotator "NA"]
[PlyCount "70"]
[EventDate "2019.08.05"]
[EventType "swiss"]
[EventCountry "NED"]
[SourceTitle "playchess.com"]
[Source "ChessBase"]
[SourceQuality "1"]
[TimeControl "5400+30"]

1. e4 {[%emt 0:00:00]} g6 {[%emt 0:00:00]} 2. d4 {[%emt 0:00:06]} Bg7 {[%emt 0:00:00]} 3. Nc3 {[%emt 0:00:29]} d6 {[%emt 0:00:00]} 4. g3 {[%emt 0:02:29]} Nf6 {[%emt 0:01:17]} 5. Bg2 {[%emt 0:02:36]} Nbd7 {[%emt 0:03:16]} 6. Nge2 {[%emt 0:00:51]} c6 {[%emt 0:06:59]} 7. a4 {[%emt 0:01:11]} e5 {[%emt 0:00:33]} 8. O-O {[%emt 0:03:10]} h6 {[%emt 0:06:33]} 9. h3 {[%emt 0:01:57]} O-O {[%emt 0:03:16]} 10. Be3 {[%emt 0:03:31]} Qe7 {[%emt 0:04:10]} 11. Qd2 {[%emt 0:02:34]} Kh7 {[%emt 0:00:20]} 12. Rad1 {[%emt 0:02:29]} Rd8 {[%emt 0:08:59]} 13. f4 {[%emt 0:06:27]} exd4 {[%emt 0:08:29]} 14. Bxd4 {[%emt 0:08:51]} Nb6 {[%emt 0:03:44]} 15. g4 {[%emt 0:05:00]} Nc4 {[%emt 0:07:47]} 16. Qc1 {[%emt 0:00:10]} d5 {[%emt 0:04:36]} 17. Bxf6 {[%emt 0:11:20]} Bxf6 {[%emt 0:00:04]} 18. exd5 {[%emt 0:01:21]} Ne3 {[%emt 0:02:45]} 19. Rfe1 {[%emt 0:02:00]} Nxd1 {[%emt 0:01:14]} 20. Qxd1 {[%emt 0:00:35]} Qc5+ {[%emt 0:03:43]} 21. Kh1 {[%emt 0:00:35]} cxd5 {[%emt 0:01:36]} 22. Rf1 {[%emt 0:01:58]} b6 {[%emt 0:03:38]} 23. g5 {[%emt 0:01:08]} Be7 {[%emt 0:01:37]} 24. Ng3 {[%emt 0:02:55]} Be6 {[%emt 0:03:12]} 25. gxh6 {[%emt 0:01:03]} f5 {[%emt 0:02:50]} 26. Qe2 {[%emt 0:02:45]} Bf7 {[%emt 0:03:24]} 27. Qe5 {[%emt 0:01:34]} Bf8 {[%emt 0:03:07]} 28. h4 {[%emt 0:03:54]} Qe7 {[%emt 0:01:45]} 29. Qxe7 {[%emt 0:00:29]} Bxe7 {[%emt 0:00:02]} 30. h5 {[%emt 0:00:33]} Rac8 {[%emt 0:01:01]} 31. hxg6+ {[%emt 0:00:16]} Kxg6 {[%emt 0:00:02]} 32. Re1 {[%emt 0:00:16]} Bh4 {[%emt 0:00:41]} 33. Kh2 {[%emt 0:00:29]} d4 {[%emt 0:01:04]} 34. Nb5 {[%emt 0:00:23]} Rxc2 {[%emt 0:00:18]} 35. Nxd4 {[%emt 0:00:15]} Rxd4 {[%emt 0:00:36]} 0-1

[Event "ONJK-B 2019"]
[Site "Borne"]
[Date "2019.08.08"]
[Round "6.11"]
[White "Neirynck, Arthur"]
[Black "Schoonhoven, Mark"]
[Result "1/2-1/2"]
[ECO "C33"]
[WhiteElo "1514"]
[BlackElo "1275"]
[Annotator "NA"]
[PlyCount "58"]
[EventDate "2019.08.05"]
[EventType "swiss"]
[EventCountry "NED"]
[SourceTitle "playchess.com"]
[Source "ChessBase"]
[SourceQuality "1"]
[TimeControl "5400+30"]

1. e4 {[%emt 0:00:00]} e5 {[%emt 0:00:00]} 2. f4 {[%emt 0:00:01]} exf4 {[%emt 0:00:57]} 3. Bc4 {[%emt 0:00:22]} Qh4+ {[%emt 0:01:23]} 4. Kf1 {[%emt 0:00:11]} Nc6 {[%emt 0:02:46]} 5. Nf3 {[%emt 0:03:12]} Qe7 {[%emt 0:03:14]} 6. Nc3 {[%emt 0:01:09]} d6 {[%emt 0:01:19]} 7. d3 {[%emt 0:07:20]} Bg4 {[%emt 0:11:30]} 8. Bxf4 {[%emt 0:08:28]} O-O-O {[%emt 0:01:00]} 9. h3 {[%emt 0:06:33]} Bxf3 {[%emt 0:01:38]} 10. Qxf3 {[%emt 0:03:44]} Nf6 {[%emt 0:06:13]} 11. g4 {[%emt 0:08:22]} h6 {[%emt 0:05:03]} 12. Kg2 {[%emt 0:01:47]} Nd4 {[%emt 0:05:25]} 13. Qf2 {[%emt 0:02:41]} c5 {[%emt 0:09:23]} 14. Rhf1 {[%emt 0:07:09]} g5 {[%emt 0:05:45]} 15. Bg3 {[%emt 0:09:19]} Bg7 {[%emt 0:02:04]} 16. Rae1 {[%emt 0:02:55]} Nc6 {[%emt 0:19:33]} 17. Nd1 {[%emt 0:07:39]} h5 {[%emt 0:06:00]} 18. Ne3 {[%emt 0:04:02]} hxg4 {[%emt 0:07:14]} 19. hxg4 {[%emt 0:02:14]} Qd7 {[%emt 0:03:12]} 20. Qe2 {[%emt 0:02:21]} Nd4 {[%emt 0:00:43]} 21. Qd1 {[%emt 0:00:52]} Rh7 {[%emt 0:01:04]} 22. c3 {[%emt 0:01:03]} Nc6 {[%emt 0:00:04]} 23. Bb3 {[%emt 0:01:20]} Ne5 {[%emt 0:01:12]} 24. Bxe5 {[%emt 0:09:44]} dxe5 {[%emt 0:00:53]} 25. Bc2 {[%emt 0:00:40]} Rdh8 {[%emt 0:00:14]} 26. Rh1 {[%emt 0:00:39]} Rh4 {[%emt 0:00:28]} 27. Rxh4 {[%emt 0:01:22]} gxh4 {[%emt 0:00:25]} 28. Rh1 {[%emt 0:01:41]} Ne8 {[%emt 0:01:56]} 29. Nf5 {[%emt 0:00:34]} Bf6 {[%emt 0:00:07]} 1/2-1/2

[Event "ONJK-B 2019"]
[Site "Borne"]
[Date "2019.08.08"]
[Round "6.12"]
[White "Maas, Tristan"]
[Black "Li-Behn, Tobias"]
[Result "1/2-1/2"]
[ECO "C54"]
[WhiteElo "1467"]
[BlackElo "1237"]
[Annotator "NA"]
[PlyCount "44"]
[EventDate "2019.08.05"]
[EventType "swiss"]
[EventCountry "NED"]
[SourceTitle "playchess.com"]
[Source "ChessBase"]
[SourceQuality "1"]
[TimeControl "5400+30"]

1. e4 {[%emt 0:00:00]} e5 {[%emt 0:00:00]} 2. Nf3 {[%emt 0:00:00]} Nc6 {[%emt 0:00:00]} 3. Bc4 {[%emt 0:00:00]} Bc5 {[%emt 0:00:00]} 4. c3 {[%emt 0:00:07]} Nf6 {[%emt 0:01:36]} 5. d4 {[%emt 0:10:14]} exd4 {[%emt 0:02:48]} 6. cxd4 {[%emt 0:00:35]} Bb4+ {[%emt 0:00:29]} 7. Bd2 {[%emt 0:00:06]} d5 {[%emt 0:09:18]} 8. exd5 {[%emt 0:04:21]} Nxd5 {[%emt 0:00:13]} 9. O-O {[%emt 0:05:34]} O-O {[%emt 0:01:26]} 10. Nc3 {[%emt 0:02:49]} Nb6 {[%emt 0:02:36]} 11. Bg5 {[%emt 0:04:11]} Be7 {[%emt 0:04:30]} 12. Bxe7 {[%emt 0:01:05]} Nxe7 {[%emt 0:00:16]} 13. Bb3 {[%emt 0:02:30]} Bg4 {[%emt 0:02:16]} 14. Qd3 {[%emt 0:03:13]} Bf5 {[%emt 0:06:18]} 15. Qe3 {[%emt 0:05:24]} Bg6 {[%emt 0:08:57]} 16. Rfe1 {[%emt 0:03:57]} Nf5 {[%emt 0:01:50]} 17. Qf4 {[%emt 0:05:10]} Qd7 {[%emt 0:07:08]} 18. Ne5 {[%emt 0:07:23]} Qxd4 {[%emt 0:12:23]} 19. Nxg6 {[%emt 0:00:54]} hxg6 {[%emt 0:00:11]} 20. Qxc7 {[%emt 0:01:04]} Qd7 {[%emt 0:02:16]} 21. Qf4 {[%emt 0:02:22]} Qc6 {[%emt 0:02:28]} 22. Rad1 {[%emt 0:02:39]} Rac8 {[%emt 0:02:46]} 1/2-1/2

[Event "ONJK-B 2019"]
[Site "Borne"]
[Date "2019.08.08"]
[Round "6.13"]
[White "Van Hille, Clara"]
[Black "Wiggers, Yannick"]
[Result "1-0"]
[ECO "B23"]
[WhiteElo "1391"]
[BlackElo "1331"]
[Annotator "NA"]
[PlyCount "47"]
[EventDate "2019.08.05"]
[EventType "swiss"]
[EventCountry "NED"]
[SourceTitle "playchess.com"]
[Source "ChessBase"]
[SourceQuality "1"]
[TimeControl "5400+30"]

1. e4 {[%emt 0:00:00]} c5 {[%emt 0:00:00]} 2. Nc3 {[%emt 0:00:00]} e6 {[%emt 0:00:04]} 3. f4 {[%emt 0:00:02]} a6 {[%emt 0:01:05]} 4. Nf3 {[%emt 0:01:02]} b5 {[%emt 0:03:03]} 5. d3 {[%emt 0:01:14]} Bb7 {[%emt 0:01:36]} 6. g3 {[%emt 0:01:09]} Qc7 {[%emt 0:02:46]} 7. Bg2 {[%emt 0:03:26]} d6 {[%emt 0:00:57]} 8. O-O {[%emt 0:00:58]} Nd7 {[%emt 0:01:21]} 9. Qe1 {[%emt 0:07:11]} Ngf6 {[%emt 0:04:29]} 10. h3 {[%emt 0:05:11]} Be7 {[%emt 0:01:08]} 11. g4 {[%emt 0:05:11]} Nb6 {[%emt 0:12:23]} 12. Bd2 {[%emt 0:08:04]} d5 {[%emt 0:08:13]} 13. e5 {[%emt 0:06:12]} Nfd7 {[%emt 0:01:37]} 14. Qg3 {[%emt 0:04:18]} O-O-O {[%emt 0:12:41]} 15. Rae1 {[%emt 0:04:45]} Nb8 {[%emt 0:10:52]} 16. f5 {[%emt 0:06:17]} d4 {[%emt 0:17:30]} 17. Ne4 {[%emt 0:04:27]} h6 {[%emt 0:03:02]} 18. Bf4 {[%emt 0:06:15]} Nd5 {[%emt 0:01:23]} 19. Bd2 {[%emt 0:06:48]} Nd7 {[%emt 0:02:20]} 20. fxe6 {[%emt 0:03:32]} fxe6 {[%emt 0:00:22]} 21. Nd6+ {[%emt 0:00:30]} Bxd6 {[%emt 0:01:09]} 22. exd6 {[%emt 0:00:05]} Qb6 {[%emt 0:00:42]} 23. Rxe6 {[%emt 0:00:44]} Nf8 {[%emt 0:01:27]} 24. d7+ {[%emt 0:00:31]} 1-0

[Event "ONJK-B 2019"]
[Site "Borne"]
[Date "2019.08.08"]
[Round "6.14"]
[White "Van Borren, Matthijs"]
[Black "Visser, Barto"]
[Result "1-0"]
[ECO "B34"]
[WhiteElo "1339"]
[BlackElo "1342"]
[Annotator "NA"]
[PlyCount "87"]
[EventDate "2019.08.05"]
[EventType "swiss"]
[EventCountry "NED"]
[SourceTitle "playchess.com"]
[Source "ChessBase"]
[SourceQuality "1"]
[TimeControl "5400+30"]

1. e4 {[%emt 0:00:00]} c5 {[%emt 0:00:00]} 2. Nf3 {[%emt 0:00:00]} Nc6 {[%emt 0:00:00]} 3. d4 {[%emt 0:00:00]} cxd4 {[%emt 0:00:00]} 4. Nxd4 {[%emt 0:00:00]} g6 {[%emt 0:00:00]} 5. Be3 {[%emt 0:00:09]} Bg7 {[%emt 0:00:03]} 6. Nc3 {[%emt 0:00:16]} Nf6 {[%emt 0:00:05]} 7. Qd2 {[%emt 0:01:13]} Ng4 {[%emt 0:01:21]} 8. Nxc6 {[%emt 0:07:31]} bxc6 {[%emt 0:01:14]} 9. Bf4 {[%emt 0:00:38]} O-O {[%emt 0:05:28]} 10. f3 {[%emt 0:00:59]} Ne5 {[%emt 0:03:41]} 11. O-O-O {[%emt 0:05:17]} d6 {[%emt 0:05:14]} 12. Be2 {[%emt 0:01:08]} Rb8 {[%emt 0:03:32]} 13. h4 {[%emt 0:00:47]} Qb6 {[%emt 0:04:05]} 14. b3 {[%emt 0:01:48]} Qa5 {[%emt 0:03:31]} 15. Kb2 {[%emt 0:06:32]} Ba6 {[%emt 0:09:33]} 16. Bxa6 {[%emt 0:16:24]} Qxa6 {[%emt 0:00:18]} 17. Kb1 {[%emt 0:11:42]} Qa3 {[%emt 0:06:14]} 18. Bxe5 {[%emt 0:05:46]} Bxe5 {[%emt 0:02:24]} 19. h5 {[%emt 0:00:34]} Rb6 {[%emt 0:04:43]} 20. hxg6 {[%emt 0:01:00]} fxg6 {[%emt 0:00:39]} 21. Qh6 {[%emt 0:05:21]} Rf7 {[%emt 0:00:57]} 22. Rd3 {[%emt 0:00:54]} Ra6 {[%emt 0:01:58]} 23. Qh3 {[%emt 0:04:58]} Bxc3 {[%emt 0:03:29]} 24. Rxc3 {[%emt 0:00:16]} Qxa2+ {[%emt 0:00:26]} 25. Kc1 {[%emt 0:00:02]} Qa3+ {[%emt 0:01:42]} 26. Kd2 {[%emt 0:00:16]} Qb4 {[%emt 0:00:33]} 27. Qc8+ {[%emt 0:00:41]} Kg7 {[%emt 0:00:28]} 28. Qxa6 {[%emt 0:00:38]} Qd4+ {[%emt 0:00:30]} 29. Qd3 {[%emt 0:01:00]} Qf2+ {[%emt 0:00:18]} 30. Kd1 {[%emt 0:06:53]} Qxg2 {[%emt 0:00:09]} 31. Qf1 {[%emt 0:01:41]} Qg3 {[%emt 0:01:22]} 32. Qh3 {[%emt 0:01:52]} Qe5 {[%emt 0:00:30]} 33. Qxh7+ {[%emt 0:00:30]} Kf6 {[%emt 0:00:21]} 34. Qh8+ {[%emt 0:02:14]} Rg7 {[%emt 0:00:07]} 35. Qh4+ {[%emt 0:00:42]} g5 {[%emt 0:00:28]} 36. Qg4 {[%emt 0:01:46]} c5 {[%emt 0:01:40]} 37. Rh6+ {[%emt 0:03:59]} Rg6 {[%emt 0:00:33]} 38. Rxg6+ {[%emt 0:00:44]} Kxg6 {[%emt 0:00:06]} 39. Qf5+ {[%emt 0:00:06]} Qxf5 {[%emt 0:00:09]} 40. exf5+ {[%emt 0:00:12]} Kxf5 {[%emt 0:00:06]} 41. Rc4 {[%emt 0:02:42]} e5 {[%emt 0:00:11]} 42. Ke2 {[%emt 0:00:22]} a6 {[%emt 0:00:24]} 43. Kd3 {[%emt 0:01:04]} a5 {[%emt 0:00:11]} 44. c3 {[%emt 0:01:06]} 1-0

[Event "ONJK-B 2019"]
[Site "Borne"]
[Date "2019.08.08"]
[Round "6.15"]
[White "Warnaar, Mark"]
[Black "Lauwers, Timo"]
[Result "0-1"]
[ECO "B77"]
[WhiteElo "1175"]
[BlackElo "1364"]
[Annotator "NA"]
[PlyCount "58"]
[EventDate "2019.08.05"]
[EventType "swiss"]
[EventCountry "NED"]
[SourceTitle "playchess.com"]
[Source "ChessBase"]
[SourceQuality "1"]
[TimeControl "5400+30"]

1. e4 {[%emt 0:00:00]} c5 {[%emt 0:00:00]} 2. Nf3 {[%emt 0:00:00]} Nc6 {[%emt 0:00:00]} 3. d4 {[%emt 0:00:00]} cxd4 {[%emt 0:00:00]} 4. Nxd4 {[%emt 0:00:00]} d6 {[%emt 0:00:13]} 5. Nc3 {[%emt 0:00:12]} g6 {[%emt 0:00:09]} 6. Be3 {[%emt 0:00:22]} Bg7 {[%emt 0:00:14]} 7. Bc4 {[%emt 0:00:10]} Nf6 {[%emt 0:01:34]} 8. f3 {[%emt 0:00:14]} O-O {[%emt 0:01:27]} 9. Qd2 {[%emt 0:00:12]} Nd7 {[%emt 0:04:06]} 10. O-O-O {[%emt 0:00:29]} Nce5 {[%emt 0:01:30]} 11. Bb3 {[%emt 0:00:20]} Nb6 {[%emt 0:01:30]} 12. Qe2 {[%emt 0:01:04]} Bd7 {[%emt 0:01:12]} 13. g4 {[%emt 0:00:45]} Qc7 {[%emt 0:07:25]} 14. h4 {[%emt 0:01:53]} Nec4 {[%emt 0:06:06]} 15. h5 {[%emt 0:00:38]} a5 {[%emt 0:00:41]} 16. hxg6 {[%emt 0:00:18]} fxg6 {[%emt 0:00:21]} 17. Qh2 {[%emt 0:00:52]} Kf7 {[%emt 0:01:09]} 18. Bh6 {[%emt 0:01:32]} Bxh6+ {[%emt 0:03:07]} 19. Qxh6 {[%emt 0:00:22]} Rh8 {[%emt 0:01:18]} 20. Qg5 {[%emt 0:04:22]} Qc5 {[%emt 0:13:03]} 21. Qf4+ {[%emt 0:03:59]} Ke8 {[%emt 0:09:01]} 22. Qg3 {[%emt 0:04:23]} e5 {[%emt 0:06:06]} 23. Nde2 {[%emt 0:01:46]} Qe3+ {[%emt 0:02:35]} 24. Kb1 {[%emt 0:00:39]} Nd2+ {[%emt 0:00:26]} 25. Ka1 {[%emt 0:00:08]} Ke7 {[%emt 0:22:48]} 26. Rh3 {[%emt 0:06:41]} Raf8 {[%emt 0:02:18]} 27. f4 {[%emt 0:03:47]} Qxg3 {[%emt 0:00:15]} 28. Nxg3 {[%emt 0:01:04]} Nxb3+ {[%emt 0:00:07]} 29. axb3 {[%emt 0:00:14]} Bxg4 {[%emt 0:00:21]} 0-1

[Event "ONJK-B 2019"]
[Site "Borne"]
[Date "2019.08.08"]
[Round "6.16"]
[White "Borgelioen, Elise"]
[Black "Berghuis, Rowin"]
[Result "1-0"]
[ECO "C50"]
[WhiteElo "1342"]
[BlackElo "1081"]
[Annotator "NA"]
[PlyCount "65"]
[EventDate "2019.08.05"]
[EventType "swiss"]
[EventCountry "NED"]
[SourceTitle "playchess.com"]
[Source "ChessBase"]
[SourceQuality "1"]
[TimeControl "5400+30"]

1. e4 {[%emt 0:00:00]} e5 {[%emt 0:00:00]} 2. Nf3 {[%emt 0:00:00]} Nc6 {[%emt 0:00:00]} 3. Nc3 {[%emt 0:00:29]} Bc5 {[%emt 0:00:19]} 4. Bc4 {[%emt 0:01:03]} d6 {[%emt 0:00:16]} 5. h3 {[%emt 0:00:39]} Nf6 {[%emt 0:00:04]} 6. d3 {[%emt 0:00:49]} h6 {[%emt 0:00:04]} 7. O-O {[%emt 0:01:15]} O-O {[%emt 0:00:07]} 8. Be3 {[%emt 0:00:31]} b6 {[%emt 0:00:33]} 9. Nd5 {[%emt 0:04:23]} Bb7 {[%emt 0:01:44]} 10. c3 {[%emt 0:03:24]} Na5 {[%emt 0:01:04]} 11. Nxf6+ {[%emt 0:08:35]} Qxf6 {[%emt 0:00:49]} 12. Bb3 {[%emt 0:02:51]} Bxe3 {[%emt 0:01:33]} 13. fxe3 {[%emt 0:00:40]} Rad8 {[%emt 0:00:39]} 14. Nd2 {[%emt 0:09:51]} Qg5 {[%emt 0:02:10]} 15. Qe2 {[%emt 0:01:40]} Bc8 {[%emt 0:02:26]} 16. Rf3 {[%emt 0:04:42]} Qg6 {[%emt 0:02:32]} 17. Raf1 {[%emt 0:04:12]} Bb7 {[%emt 0:01:43]} 18. Bxf7+ {[%emt 0:03:08]} Rxf7 {[%emt 0:00:49]} 19. Rxf7 {[%emt 0:00:10]} Qxf7 {[%emt 0:02:46]} 20. Rxf7 {[%emt 0:00:08]} Kxf7 {[%emt 0:00:02]} 21. d4 {[%emt 0:01:42]} c6 {[%emt 0:00:58]} 22. Qh5+ {[%emt 0:01:26]} Kg8 {[%emt 0:00:44]} 23. Qf5 {[%emt 0:02:26]} Ba6 {[%emt 0:01:42]} 24. b3 {[%emt 0:02:30]} c5 {[%emt 0:01:27]} 25. Nf3 {[%emt 0:02:18]} Nc6 {[%emt 0:01:37]} 26. dxe5 {[%emt 0:01:02]} dxe5 {[%emt 0:01:42]} 27. Qe6+ {[%emt 0:00:11]} Kh8 {[%emt 0:00:22]} 28. Qxc6 {[%emt 0:00:11]} Rd1+ {[%emt 0:00:31]} 29. Kh2 {[%emt 0:00:15]} Ra1 {[%emt 0:00:04]} 30. Nxe5 {[%emt 0:01:16]} Rxa2 {[%emt 0:00:30]} 31. c4 {[%emt 0:00:51]} Rb2 {[%emt 0:00:41]} 32. Qa8+ {[%emt 0:01:37]} Kh7 {[%emt 0:00:06]} 33. Qxa7 {[%emt 0:00:24]} 1-0